bitfinex-derivatives/quotes_ETHF0:USTF0_20250704
["timestamp","ask_amount","ask_price","bid_price","bid_amount"]
[1751651886170,0.80057,2497.4,2497.3,0.80057]
[1751651886366,1.0964608,2497.4,2497.3,0.80057]
[1751651886565,0.7105,2497.6,2497.5,0.80053]
[1751651886566,37.86502,2497.6,2497.5,0.80053]
[1751651886766,0.80058,2497.4,2497.3,0.80056]
[1751651887069,6.58828,2497.5,2497.0,5.20953]
[1751651887269,0.80061,2497.3,2497.2,0.80061]
[1751651887867,1.3791,2497.4,2497.0,3.2078]
[1751651887868,0.80064,2497.2,2497.1,0.80063]
[1751651890270,0.80066,2497.1,2497.0,3.2078]
[1751651890664,0.80072,2496.9,2496.8,1.47583]
[1751651891170,0.80071,2497.0,2496.9,0.8007]
[1751651892172,0.80072,2496.9,2496.8,1.47583]
[1751651893568,0.80078,2496.7,2496.6,4.0086]
[1751651893769,0.80078,2496.7,2496.6,4.00862]
[1751651894072,0.80078,2496.7,2496.6,3.2078]
[1751651895674,0.80078,2496.7,2496.6,4.00862]
[1751651899575,2.13328,2496.8,2496.7,0.80078]
[1751651899771,2.13325,2496.8,2496.7,0.80078]
[1751651900074,2.13325,2496.8,2496.7,1.48788]
[1751651901776,2.13325,2496.8,2496.7,0.6871]
[1751651904879,0.80078,2496.7,2496.6,3.2078]
[1751651905078,2.17188,2496.7,2496.6,3.2078]
[1751651905678,2.17188,2496.7,2496.5,0.80083]
[1751651905679,0.80082,2496.6,2496.5,0.80083]
[1751651906180,0.80082,2496.6,2496.4,3.8837]
[1751651906181,2.17191,2496.7,2496.6,0.80082]
[1751651907380,3.9126,2497.0,2496.4,3.8837]
[1751651907577,1.89920095,2496.9,2496.8,0.80073]
[1751651908981,0.80078,2496.8,2496.7,0.80076]
[1751651909480,0.80074,2496.9,2496.8,0.80073]
[1751651909679,1.09682183,2496.9,2496.8,0.80073]
[1751651909983,0.80066,2497.1,2497.0,0.80065]
[1751651910373,1.09671604,2497.1,2497.0,0.80065]
[1751651911182,0.80063,2497.2,2497.1,0.80065]
[1751651911386,1.89742689,2497.2,2497.1,0.80065]
[1751651914983,1.09679689,2497.2,2497.1,0.80065]
[1751651915382,2.16851,2497.3,2497.2,0.80062]
[1751651915582,3.26198295,2497.3,2497.2,0.80062]
[1751651916585,3.26196295,2497.3,2497.2,0.80062]
[1751651919085,2.46137295,2497.3,2496.8,1.3852]
[1751651919285,5.20944,2497.1,2496.7,0.80078]
[1751651919491,0.80076,2496.8,2496.7,0.80076]
[1751651919989,0.8008,2496.7,2496.6,0.80081]
[1751651920188,0.7001,2496.9,2496.5,3.2078]
[1751651920189,0.80077,2496.8,2496.7,0.80078]
[1751651920487,1.89268218,2496.8,2496.7,0.80078]
[1751651920677,3.30448218,2496.8,2496.7,0.80078]
[1751651921077,1.4118,2496.8,2496.5,3.2078]
[1751651921291,2.21257,2496.8,2496.7,0.80078]
[1751651921586,3.30282729,2496.8,2496.7,0.80078]
[1751651921890,2.50205729,2496.8,2496.7,0.80078]
[1751651923189,1.09025729,2496.8,2496.7,0.80078]
[1751651924085,1.44889,2497.0,2496.9,0.80072]
[1751651924285,2.53908077,2497.0,2496.9,0.80072]
[1751651925184,1.89088077,2497.0,2496.9,0.80072]
[1751651925389,1.09019077,2497.0,2496.9,0.80072]
[1751651925589,1.89088077,2497.0,2496.9,0.80072]
[1751651927787,1.09019077,2497.0,2496.9,0.80072]
[1751651928483,16.47323,2497.4,2496.9,0.80072]
[1751651928484,36.352,2497.5,2497.4,0.80053]
[1751651928790,1.09076812,2497.5,2497.2,2.00156]
[1751651929088,1.3949,2497.8,2497.7,0.80046]
[1751651929294,2.48545196,2497.8,2497.7,0.80046]
[1751651929595,44.08591196,2497.8,2497.7,0.80046]
[1751651930388,41.89055196,2497.8,2497.7,0.80046]
[1751651930683,42.69098196,2497.8,2497.7,0.80046]
[1751651930888,1.89098196,2497.8,2497.7,0.80046]
[1751651931392,1.09055196,2497.8,2497.7,0.80046]
[1751651932289,0.80043,2497.8,2497.7,0.80046]
[1751651932693,0.80049,2497.7,2497.6,0.80047]
[1751651932894,0.80052,2497.6,2497.5,0.8005]
[1751651933193,0.80053,2497.5,2497.4,3.2078]
[1751651933397,37.83963,2497.5,2497.4,3.2078]
[1751651934089,38.50733,2497.5,2497.4,3.2078]
[1751651934396,0.80061,2497.3,2497.1,3.9192]
[1751651934894,0.80061,2497.3,2497.2,0.80062]
[1751651935094,0.80061,2497.3,2497.1,4.71984]
[1751651935394,0.80061,2497.3,2497.2,0.80062]
[1751651935696,1.4115,2497.4,2497.2,0.80062]
[1751651935996,2.21208,2497.4,2497.3,0.80059]
[1751651936192,0.80059,2497.3,2497.2,0.8006]
[1751651937893,2.21208,2497.4,2497.3,0.80059]
[1751651938299,0.8006,2497.3,2497.2,0.8006]
[1751651938499,2.2272,2497.3,2497.2,0.8006]
[1751651939000,1.4266,2497.3,2497.2,0.8006]
[1751651939194,1.4266,2497.3,2497.1,3.9192]
[1751651939195,0.80062,2497.2,2497.1,4.71983]
[1751651939396,1.4266,2497.3,2497.1,3.9192]
[1751651939597,36.344,2497.4,2497.1,3.9192]
[1751651939792,37.14457,2497.4,2497.3,0.80058]
[1751651939999,38.2293092,2497.4,2497.3,0.80058]
[1751651940200,0.80059,2497.3,2497.2,0.8006]
[1751651941497,36.344,2497.4,2497.3,0.80059]
[1751651941904,0.6677,2497.5,2497.4,0.80056]
[1751651942095,0.80059,2497.4,2497.3,0.80057]
[1751651942907,37.14454,2497.5,2497.4,0.80056]
[1751651943408,0.80055,2497.5,2497.4,0.80052]
[1751651944302,37.14451,2497.6,2497.5,0.80053]
[1751651944509,38.22587709,2497.6,2497.5,0.80053]
[1751651945108,0.80056,2497.4,2497.3,0.6983]
[1751651945304,0.80056,2497.4,2497.3,1.49889]
[1751651946298,0.80056,2497.4,2497.3,0.80059]
[1751651946502,0.80061,2497.3,2497.2,0.8006]
[1751651947112,0.80058,2497.4,2497.3,0.80058]
[1751651947314,0.80062,2497.3,2497.2,0.80061]
[1751651947503,3.32883,2497.5,2497.1,3.9192]
[1751651947709,0.80062,2497.2,2497.1,4.71983]
[1751651947910,0.80062,2497.3,2497.2,0.80061]
[1751651949616,2.82758,2497.4,2497.2,0.80061]
[1751651949812,2.027,2497.4,2497.3,0.80059]
[1751651950016,36.343,2497.5,2497.3,2.00147]
[1751651950209,36.343,2497.5,2497.4,0.80056]
[1751651950714,37.14353,2497.5,2497.4,0.80056]
[1751651951416,0.80053,2497.5,2497.4,0.80056]
[1751651952413,1.88053679,2497.5,2497.4,0.80056]
[1751651952721,0.80053,2497.5,2497.2,2.00149]
[1751651952920,0.80053,2497.5,2497.4,0.80053]
[1751651953413,1.87915438,2497.5,2497.1,5.92082]
[1751651953618,0.80058,2497.4,2497.3,0.80056]
[1751651954112,1.3615,2497.5,2497.2,0.80061]
[1751651954113,0.80062,2497.3,2497.2,0.80061]
[1751651955714,0.80062,2497.2,2497.1,4.71983]
[1751651955915,0.80061,2497.3,2497.2,0.8006]
[1751651957315,0.80061,2497.3,2497.1,4.71983]
[1751651957316,0.80062,2497.2,2497.1,4.71983]
[1751651957514,2.17521,2497.3,2497.2,0.80062]
[1751651957715,3.25479559,2497.3,2497.2,0.80062]
[1751651959629,0.80062,2497.2,2497.1,4.71983]
[1751651960128,2.17522,2497.3,2497.1,4.71983]
[1751651960325,0.80062,2497.2,2497.1,3.9192]
[1751651960528,0.80062,2497.2,2497.1,4.71985]
[1751651960932,1.88093626,2497.2,2497.1,4.71985]
[1751651961526,1.08031626,2497.2,2497.1,4.71985]
[1751651962125,1.08031626,2497.2,2497.1,1.51205]
[1751651962428,0.80062,2497.2,2497.1,1.51205]
[1751651963226,1.8797703,2497.2,2497.1,1.51205]
[1751651963426,1.0791503,2497.2,2497.1,1.51205]
[1751651963732,1.8797703,2497.2,2497.1,1.51205]
[1751651966629,1.0791503,2497.2,2497.1,1.51205]
[1751651966833,1.8797703,2497.2,2497.1,1.51205]
[1751651969232,0.80069,2497.0,2496.9,3.2078]
[1751651969530,0.80069,2497.0,2496.9,4.00852]
[1751651969725,1.0716256,2497.0,2496.9,4.00852]
[1751651970327,0.80067,2497.1,2497.0,0.80065]
[1751651970523,0.80066,2497.2,2497.1,0.80064]
[1751651970728,1.86503045,2497.2,2497.1,0.80064]
[1751651973836,1.06437045,2497.2,2497.1,0.80064]
[1751651974532,1.86499045,2497.2,2497.1,0.80064]
[1751651975029,1.06437045,2497.2,2497.1,0.80064]
[1751651975235,1.86499045,2497.2,2497.1,0.80064]
[1751651976636,1.06437045,2497.2,2497.1,0.80064]
[1751651976836,1.86499045,2497.2,2497.1,0.80064]
[1751651977138,1.86971297,2497.2,2497.1,0.80064]
[1751651980341,1.06909297,2497.2,2497.1,0.80064]
[1751651980740,1.86971297,2497.2,2497.1,0.80064]
[1751651980942,1.06909297,2497.2,2497.1,0.80064]
[1751651982838,0.80059,2497.4,2497.3,0.80056]
[1751651983039,1.86823398,2497.4,2497.3,0.80056]
[1751651984240,1.86823398,2497.4,2497.3,1.46286]
[1751651987946,1.06764398,2497.4,2497.3,1.46286]
[1751651988150,1.86820398,2497.4,2497.3,1.46286]
[1751651988747,1.06764398,2497.4,2497.3,1.46286]
[1751651988947,1.86820398,2497.4,2497.3,1.46286]
[1751651989541,1.06764398,2497.4,2497.3,1.46286]
[1751651990543,0.80056,2497.4,2497.3,1.46286]
[1751651993152,0.80054,2497.5,2497.4,0.8005]
[1751651995253,0.80054,2497.5,2497.4,0.80056]
[1751651997058,0.80052,2497.6,2497.5,0.80049]
[1751651997350,3.28663926,2497.6,2497.5,0.80049]
[1751651998052,1.85950926,2497.6,2497.5,0.80049]
[1751651998456,1.85762748,2497.6,2497.5,0.80049]
[1751651998752,1.85765427,2497.6,2497.5,0.80049]
[1751651999154,0.80049,2497.6,2497.5,0.80049]
[1751652001148,0.80056,2497.5,2497.4,0.80053]
[1751652001349,0.80056,2497.4,2497.3,0.80057]
[1751652002150,0.80062,2497.2,2497.1,0.6926]
[1751652002549,0.80068,2497.1,2497.0,0.80066]
[1751652002751,0.80069,2497.0,2496.9,4.70109]
[1751652004556,0.80069,2497.0,2496.9,3.2078]
[1751652007355,0.80075,2496.8,2496.7,0.7037]
[1751652007862,0.80081,2496.6,2496.5,3.2078]
[1751652009353,2.05,2496.7,2496.3,0.6498]
[1751652009554,0.80081,2496.6,2496.5,3.2078]
[1751652009755,41.60081,2496.6,2496.5,3.2078]
[1751652010256,42.92701,2496.6,2496.5,3.2078]
[1751652010454,2.12701,2496.6,2496.5,3.2078]
[1751652011359,0.80088,2496.4,2496.3,0.6498]
[1751652012567,0.80091,2496.3,2496.2,3.2078]
[1751652013259,0.80097,2496.1,2496.0,0.6547]
[1751652013462,0.80109,2495.8,2495.7,0.80109]
[1751652013656,0.80105,2495.9,2495.8,0.80105]
[1751652013963,0.80107,2495.8,2495.7,1.51328]
[1751652020461,0.80106,2495.9,2495.8,0.80104]
[1751652021666,0.80104,2495.9,2495.8,0.80104]
[1751652022163,2.21813,2496.0,2495.9,0.80104]
[1751652031563,2.21813,2496.0,2495.8,0.80104]
[1751652031564,0.80106,2495.9,2495.8,0.80104]
[1751652033370,0.80107,2495.8,2495.7,4.72109]
[1751652033570,0.80107,2495.8,2495.7,1.51329]
[1751652033772,0.80107,2495.8,2495.7,0.7122]
[1751652033969,0.80107,2495.8,2495.7,1.5133]
[1751652035773,0.80107,2495.8,2495.7,0.7122]
[1751652036574,2.16937,2495.8,2495.7,0.7122]
[1751652043170,3.20590824,2495.8,2495.7,0.7122]
[1751652043678,2.16937,2495.8,2495.7,0.7122]
[1751652045772,0.8011,2495.7,2495.6,3.2078]
[1751652045972,2.1279,2495.7,2495.6,3.2078]
[1751652046267,2.1279,2495.7,2495.6,4.00893]
[1751652046876,0.8011,2495.7,2495.6,4.00893]
[1751652047069,0.8011,2495.8,2495.7,0.80107]
[1751652047268,0.8011,2495.8,2495.7,1.51237]
[1751652050282,0.80107,2495.9,2495.8,0.80105]
[1751652050481,1.83761039,2495.9,2495.8,0.80105]
[1751652050777,0.80107,2495.8,2495.7,1.51238]
[1751652054376,0.80107,2495.9,2495.8,0.80104]
[1751652054576,1.83041779,2495.9,2495.8,0.80104]
[1751652060586,0.80107,2495.8,2495.7,1.51238]
[1751652060789,0.80107,2495.8,2495.7,0.7113]
[1751652060987,0.8011,2495.7,2495.6,3.2078]
[1751652062085,0.8011,2495.7,2495.6,4.00893]
[1751652063484,1.3431,2495.9,2495.7,0.80108]
[1751652063689,1.83099813,2495.8,2495.7,0.80108]
[1751652070492,1.02989813,2495.8,2495.7,0.80108]
[1751652070695,0.80105,2495.9,2495.8,0.80107]
[1751652073593,0.80105,2495.9,2495.8,4.00887]
[1751652075692,0.80105,2495.9,2495.8,0.80107]
[1751652075892,0.80105,2495.9,2495.8,4.00887]
[1751652076092,0.80105,2495.9,2495.8,4.72587]
[1751652076297,0.80105,2495.9,2495.8,1.51807]
[1751652076596,0.80105,2495.9,2495.8,4.72587]
[1751652077297,0.80105,2495.9,2495.8,4.00887]
[1751652077694,0.80103,2496.0,2495.9,0.80104]
[1751652078099,1.84162208,2496.0,2495.9,0.80104]
[1751652078298,1.84161057,2496.0,2495.9,0.80104]
[1751652082599,40.8,2496.7,2496.4,0.80086]
[1751652082902,0.80088,2496.5,2496.4,0.80086]
[1751652083702,0.8009,2496.4,2496.3,0.80087]
[1751652083905,0.80091,2496.3,2496.2,0.80091]
[1751652084099,2.23721,2496.3,2496.2,0.80091]
[1751652084299,2.23721,2496.3,2496.2,4.00871]
[1751652086404,0.80091,2496.3,2496.2,4.00871]
[1751652086805,0.80091,2496.3,2496.2,0.80091]
[1751652087005,0.80091,2496.3,2496.2,4.00871]
[1751652087206,0.8009,2496.4,2496.3,0.80087]
[1751652087509,2.1445,2496.4,2496.3,0.80087]
[1751652088304,1.3436,2496.4,2496.3,0.80087]
[1751652088602,2.14448,2496.4,2496.3,0.80087]
[1751652089310,0.80095,2496.3,2496.2,0.80092]
[1751652089502,0.6554,2496.7,2496.2,3.2078]
[1751652089701,3.18789555,2496.6,2496.5,0.80082]
[1751652090097,0.80088,2496.5,2496.4,0.80085]
[1751652090305,2.13778,2496.5,2496.4,0.80085]
[1751652092212,1.3369,2496.5,2496.4,0.80085]
[1751652092412,2.13775,2496.5,2496.4,0.80085]
[1751652092708,1.3369,2496.5,2496.4,0.80085]
[1751652093009,0.6554,2496.7,2496.6,0.80081]
[1751652093010,1.45621,2496.7,2496.6,0.80081]
[1751652093215,2.50647413,2496.7,2496.6,0.80081]
[1751652093417,3.88797413,2496.7,2496.6,0.80081]
[1751652094111,3.08716413,2496.7,2496.6,0.80081]
[1751652094307,2.0369,2496.7,2496.6,0.80081]
[1751652094710,2.83768,2496.7,2496.6,0.80081]
[1751652095220,3.2078,2497.2,2496.8,2.00188]
[1751652095516,1.04998854,2497.1,2497.0,0.80069]
[1751652095718,43.21678854,2497.1,2497.0,0.80069]
[1751652095912,44.01744854,2497.1,2497.0,0.80069]
[1751652096315,0.80069,2497.0,2496.9,1.44949]
[1751652096620,2.16749,2497.0,2496.9,1.44949]
[1751652097017,0.80072,2496.9,2496.8,3.2078]
[1751652097220,2.16752,2496.9,2496.8,3.2078]
[1751652097722,1.3668,2496.9,2496.8,3.2078]
[1751652098016,2.16752,2496.9,2496.8,3.2078]
[1751652098319,0.80086,2496.5,2496.4,3.2078]
[1751652098523,0.80084,2496.6,2496.4,3.2078]
[1751652098818,0.80084,2496.6,2496.5,0.80083]
[1751652101719,0.80085,2496.5,2496.4,4.00866]
[1751652101921,0.80085,2496.5,2496.4,4.53831797]
[1751652104727,0.80083,2496.6,2496.5,1.33047797]
[1751652104921,2.14281,2496.7,2496.6,0.80081]
[1751652105116,3.20095897,2496.7,2496.6,1.33046797]
[1751652105523,44.00095897,2496.7,2496.6,1.33046797]
[1751652105723,44.00095897,2496.7,2496.6,0.52965797]
[1751652106025,44.00095897,2496.7,2496.6,1.33046797]
[1751652106926,44.00095897,2496.7,2496.6,0.80081]
[1751652107823,0.80085,2496.6,2496.5,0.80083]
[1751652108023,2.21535,2496.6,2496.5,0.80083]
[1751652108431,3.27259289,2496.6,2496.5,0.80083]
[1751652109530,2.21535,2496.6,2496.5,0.80083]
[1751652110334,3.27307784,2496.6,2496.5,0.80083]
[1751652111733,3.27307784,2496.6,2496.5,1.33397479]
[1751652117137,3.27307784,2496.6,2496.5,1.33382819]
[1751652119438,1.85857784,2496.6,2496.5,1.33382819]
[1751652123241,1.05772784,2496.6,2496.5,1.33382819]
[1751652123739,37.11877,2496.8,2496.7,0.80078]
[1751652123941,38.16366935,2496.8,2496.7,1.33377819]
[1751652126241,38.14187883,2496.8,2496.7,1.33377819]
[1751652127141,38.14187883,2496.8,2496.7,0.53299819]
[1751652127344,39.55457883,2496.8,2496.7,1.33377819]
[1751652128039,0.80078,2496.7,2496.6,0.80079]
[1751652128240,1.84569935,2496.7,2496.6,1.334351]
[1751652132544,1.84569935,2496.7,2496.6,0.80079]
[1751652132739,1.04491935,2496.7,2496.6,0.80079]
[1751652133038,37.11473,2496.9,2496.8,0.80075]
[1751652133233,1.84580754,2496.9,2496.8,0.80075]
[1751652134044,0.8008,2496.8,2496.7,0.80075]
[1751652134342,0.80082,2496.7,2496.6,0.8008]
[1751652134538,1.84589754,2496.7,2496.6,0.8008]
[1751652135339,3.20599754,2496.7,2496.6,0.8008]
[1751652137047,2.40517754,2496.7,2496.5,0.6628]
[1751652137246,2.16092,2496.7,2496.6,0.80082]
[1751652137442,3.20430179,2496.7,2496.6,0.80082]
[1751652139444,0.80082,2496.6,2496.5,1.46364]
[1751652139948,1.8467762,2496.6,2496.5,1.46364]
[1751652140249,1.8467762,2496.6,2496.5,0.6628]
[1751652140552,1.8467762,2496.6,2496.5,1.46365]
[1751652142748,0.80085,2496.5,2496.4,3.2078]
[1751652143054,1.84698415,2496.5,2496.4,3.2078]
[1751652143349,21.16763415,2496.5,2495.7,3.18088302]
[1751652143553,3.2078,2495.9,2495.4,0.6831]
[1751652143753,36.318,2495.9,2495.5,2.00293]
[1751652144054,0.80103,2496.0,2495.8,0.80107]
[1751652144255,0.80103,2496.0,2495.9,0.6738]
[1751652144446,42.64689754,2496.0,2495.9,1.47484]
[1751652144646,42.64689754,2496.0,2495.9,0.6738]
[1751652145255,42.64689754,2496.0,2495.9,1.47484]
[1751652145453,42.64689754,2496.0,2495.9,0.6738]
[1751652145651,42.64689754,2496.0,2495.9,1.47484]
[1751652146244,41.60101,2496.0,2495.9,1.47484]
[1751652147252,41.60101,2496.0,2495.9,0.6738]
[1751652147455,41.60101,2496.0,2495.9,1.47484]
[1751652148155,41.60101,2496.0,2495.9,0.6738]
[1751652149458,41.60101,2496.0,2495.9,1.47484]
[1751652150049,41.60101,2496.0,2495.9,0.6738]
[1751652150250,40.8,2496.0,2495.9,1.47484]
[1751652150855,37.11899,2496.1,2496.0,0.80101]
[1751652151456,77.91795,2496.2,2496.1,0.80098]
[1751652152752,0.695,2496.3,2496.1,0.80098]
[1751652152955,5.20973,2496.8,2496.2,3.2078]
[1751652153253,0.80089,2496.5,2496.4,0.80085]
[1751652158163,0.80091,2496.4,2496.3,0.80088]
[1751652159165,0.80091,2496.3,2496.2,3.2078]
[1751652159566,0.80091,2496.3,2496.2,4.00874]
[1751652162162,0.801,2496.1,2496.0,0.80098]
[1751652162361,0.80101,2496.0,2495.9,0.80101]
[1751652163162,0.80104,2495.9,2495.8,4.00885]
[1751652168171,0.80104,2495.9,2495.8,3.2078]
[1751652168373,0.8011,2495.7,2495.6,1.47151]
[1751652169169,0.8011,2495.7,2495.6,0.6704]
[1751652169476,0.8013,2495.1,2495.0,3.18088302]
[1751652169670,2.0032,2495.2,2494.8,3.18088302]
[1751652169978,2.0032,2495.2,2494.6,3.18088302]
[1751652169979,0.80143,2494.7,2494.6,3.18088302]
[1751652170277,0.80146,2494.6,2494.5,3.18088302]
[1751652170967,1.4218,2494.9,2494.5,3.98235302]
[1751652171172,1.4218,2494.9,2494.6,0.6935]
[1751652171173,0.80145,2494.7,2494.6,0.6935]
[1751652171973,0.80141,2494.8,2494.6,0.6935]
[1751652172380,0.80141,2494.8,2494.7,0.80143]
[1751652173275,2.22318,2494.9,2494.7,0.8014]
[1751652173568,2.3957038,2495.6,2494.7,5.0]
[1751652173773,0.80123,2495.4,2494.8,2.0525]
[1751652173975,1.86498006,2495.3,2495.1,0.80127]
[1751652174179,41.60126,2495.2,2495.1,0.80127]
[1751652174369,0.80135,2495.0,2494.8,0.7025]
[1751652174574,0.80136,2494.9,2494.8,1.50389]
[1751652174773,0.80136,2494.9,2494.7,0.8014]
[1751652175175,0.80136,2494.9,2494.8,0.80139]
[1751652175374,0.80135,2495.0,2494.9,0.80136]
[1751652176177,2.86272,2495.1,2494.9,0.80136]
[1751652176480,2.86272,2495.1,2495.0,0.80133]
[1751652176779,2.86272,2495.1,2494.9,0.80134]
[1751652176981,0.80133,2495.0,2494.6,5.2631]
[1751652177181,0.80136,2494.9,2494.8,0.80137]
[1751652177678,0.80136,2495.0,2494.8,0.80137]
[1751652178281,0.80136,2494.9,2494.8,0.80137]
[1751652181184,0.80142,2494.8,2494.7,0.80141]
[1751652181381,0.80143,2494.7,2494.6,4.70273]
[1751652181585,0.80142,2494.8,2494.7,0.80142]
[1751652182186,0.80143,2494.7,2494.6,3.9013]
[1751652182685,0.80143,2494.7,2494.6,4.70276]
[1751652183889,0.80142,2494.8,2494.7,0.80141]
[1751652184589,0.80143,2494.7,2494.6,4.70273]
[1751652185389,0.80142,2494.8,2494.7,0.80141]
[1751652185881,36.423,2494.9,2494.6,5.90488]
[1751652185882,0.80137,2494.9,2494.6,5.90488]
[1751652186079,0.80137,2494.9,2494.8,0.80136]
[1751652186278,38.4895,2495.1,2494.7,0.7056]
[1751652186279,0.80139,2494.8,2494.7,0.7056]
[1751652186477,0.80143,2494.7,2494.6,4.70275]
[1751652187188,0.80143,2494.7,2494.6,3.9013]
[1751652187389,0.80152,2494.4,2494.3,3.2078]
[1751652187588,0.80151,2494.5,2494.4,0.8015]
[1751652190289,0.80152,2494.4,2494.3,3.2078]
[1751652191989,0.80152,2494.4,2494.3,4.00935]
[1751652192389,0.80151,2494.5,2494.4,0.8015]
[1751652193194,0.80152,2494.4,2494.3,3.2078]
[1751652194484,0.80162,2494.1,2494.0,4.00944]
[1751652195395,0.80162,2494.1,2494.0,3.2078]
[1751652195596,0.80162,2494.1,2494.0,4.00945]
[1751652197088,0.80156,2494.3,2494.2,0.80158]
[1751652197292,0.80156,2494.3,2494.0,3.2078]
[1751652197293,0.8016,2494.2,2494.1,0.80159]
[1751652197796,0.80162,2494.1,2494.0,4.00942]
[1751652198600,0.80161,2494.2,2494.1,0.8016]
[1751652198798,4.06791,2494.4,2494.0,4.00943]
[1751652198799,0.80162,2494.1,2494.0,4.00943]
[1751652199000,0.80162,2494.1,2494.0,3.2078]
[1751652200096,0.80162,2494.1,2494.0,4.00945]
[1751652200502,0.80162,2494.1,2494.0,3.2078]
[1751652200703,0.80162,2494.1,2494.0,4.00945]
[1751652201001,0.80162,2494.1,2494.0,3.2078]
[1751652203203,0.80162,2494.1,2494.0,4.00945]
[1751652203405,0.80162,2494.1,2494.0,3.2078]
[1751652203901,0.80162,2494.1,2494.0,4.00945]
[1751652204605,0.80162,2494.1,2494.0,3.2078]
[1751652205305,0.80162,2494.1,2493.8,1.52019]
[1751652205306,0.80168,2493.9,2493.8,0.7185]
[1751652206406,0.80168,2493.9,2493.8,1.52021]
[1751652206607,0.80168,2493.9,2493.8,0.7185]
[1751652207506,42.80415,2494.0,2493.6,0.80175]
[1751652207708,0.80177,2493.7,2493.6,0.80175]
[1751652208007,43.48035,2494.0,2493.5,3.2078]
[1751652208008,40.8,2494.0,2493.5,3.2078]
[1751652208196,0.80169,2493.9,2493.8,0.80169]
[1751652209702,40.8,2494.0,2493.7,1.46382]
[1751652209703,0.80171,2493.8,2493.7,1.46382]
[1751652210005,41.60166,2494.0,2493.9,0.80168]
[1751652210502,0.80166,2494.0,2493.9,0.80168]
[1751652211006,0.80171,2493.9,2493.8,0.80169]
[1751652211602,0.80171,2493.8,2493.7,1.46382]
[1751652213008,0.80171,2493.8,2493.7,0.6621]
[1751652213212,0.80178,2493.6,2493.5,4.0096]
[1751652214210,0.80178,2493.6,2493.5,3.2078]
[1751652214909,0.80178,2493.6,2493.5,4.00961]
[1751652215311,0.80176,2493.7,2493.6,0.80175]
[1751652215505,0.80174,2493.8,2493.7,0.80173]
[1751652215705,0.80176,2493.7,2493.6,0.80175]
[1751652216406,0.80174,2493.8,2493.7,0.80173]
[1751652216608,1.90019711,2493.8,2493.7,0.80173]
[1751652217105,0.80178,2493.6,2493.5,3.2078]
[1751652217302,0.80181,2493.5,2493.4,0.80183]
[1751652217507,0.80185,2493.4,2493.3,0.80187]
[1751652217711,3.2078,2493.6,2493.3,0.80187]
[1751652217712,0.80183,2493.5,2493.3,0.80187]
[1751652217914,0.80183,2493.5,2493.4,0.80184]
[1751652218411,0.8018,2493.6,2493.5,0.80181]
[1751652218612,1.89716109,2493.6,2493.5,0.80181]
[1751652219114,0.80182,2493.5,2493.4,0.80182]
[1751652219611,0.8018,2493.6,2493.5,0.8018]
[1751652219812,0.80181,2493.5,2493.4,0.80182]
[1751652220015,0.8018,2493.6,2493.5,0.8018]
[1751652220212,0.80181,2493.5,2493.4,0.80181]
[1751652221711,1.3848,2493.7,2493.3,5.21245]
[1751652222016,0.8018,2493.6,2493.5,0.80179]
[1751652222616,41.61001,2493.9,2493.3,6.52548]
[1751652222617,0.80177,2493.7,2493.6,0.80176]
[1751652222805,1.89829416,2493.7,2493.6,0.80176]
[1751652223212,0.80178,2493.6,2493.5,1.48289]
[1751652223811,0.80177,2493.7,2493.6,0.80175]
[1751652224012,1.89826815,2493.7,2493.6,0.80175]
[1751652225120,1.89826815,2493.7,2493.5,1.48288]
[1751652225121,0.80178,2493.6,2493.5,1.48288]
[1751652225820,0.80178,2493.6,2493.5,1.48291]
[1751652227520,0.80177,2493.7,2493.6,0.80176]
[1751652227721,1.8982446,2493.7,2493.6,0.80176]
[1751652229829,0.80178,2493.6,2493.5,1.48288]
[1751652231424,1.89691321,2493.6,2493.5,1.48288]
[1751652237632,1.09513321,2493.6,2493.5,1.48288]
[1751652237935,1.89691321,2493.6,2493.5,1.48288]
[1751652243037,1.09513321,2493.6,2493.5,0.80178]
[1751652243237,0.80177,2493.7,2493.6,0.80178]
[1751652243543,1.91255658,2493.7,2493.6,0.80178]
[1751652244643,0.80181,2493.6,2493.5,0.80179]
[1751652244839,1.91259658,2493.6,2493.5,0.80179]
[1751652247239,0.80184,2493.4,2493.3,3.2078]
[1751652247639,1.91262658,2493.4,2493.3,3.2078]
[1751652247840,3.31572658,2493.4,2493.3,3.2078]
[1751652248642,1.91262658,2493.4,2493.3,4.00967]
[1751652248842,1.11078658,2493.4,2493.3,4.00967]
[1751652249045,1.91262658,2493.4,2493.3,4.00967]
[1751652250149,1.11078658,2493.4,2493.3,4.00967]
[1751652250448,0.80176,2493.7,2493.6,0.80178]
[1751652250850,1.9174389,2493.7,2493.6,0.80178]
[1751652252350,1.9174189,2493.7,2493.6,0.80178]
[1751652255946,1.1156789,2493.7,2493.6,0.80178]
[1751652256346,42.8773,2494.0,2493.8,0.80168]
[1751652256347,0.80168,2493.9,2493.8,0.80168]
[1751652256542,1.90445926,2493.9,2493.8,0.80168]
[1751652257140,1.10277926,2493.9,2493.8,0.80168]
[1751652257347,0.80168,2494.0,2493.9,0.80168]
[1751652257548,1.88846958,2494.0,2493.9,4.00948]
[1751652257741,1.08678958,2494.0,2493.9,4.00948]
[1751652257942,0.80163,2494.1,2494.0,0.80165]
[1751652258143,1.88837646,2494.2,2494.1,0.80162]
[1751652258342,1.88790304,2494.2,2494.1,0.80162]
[1751652259955,1.08629304,2494.2,2494.1,0.80162]
[1751652260153,1.47885,2494.3,2494.2,0.80158]
[1751652260352,1.08377407,2494.3,2494.2,0.80158]
[1751652260553,2.18774,2494.4,2494.3,0.80155]